fUSD/lending_fUSD_20241023
["ID","MTS","AMOUNT","RATE_DAILY","PERIOD"]
[340697361,1729691480029,-894.45,0.00051543,120]
[340697362,1729691480039,-500.0,0.00051543,120]
[340697363,1729691480049,-500.0,0.00051543,120]
[340697364,1729691480058,-284.70378451,0.00051543,120]
[340697365,1729691480068,-500.0,0.00051543,120]
[340697366,1729691480077,-744.01,0.00051543,120]
[340697367,1729691480087,-316.73502477,0.00051543,120]
[340697368,1729691480096,-500.0,0.00051543,120]
[340697369,1729691480106,-515.02,0.00051543,120]
[340697370,1729691480115,-500.0,0.00051543,120]
[340697371,1729691480125,-507.36016504,0.00051543,120]
[340697372,1729691480134,-500.0,0.00051543,120]
[340697373,1729691480144,-637.9,0.00051543,120]
[340697374,1729691480153,-500.0,0.00051543,120]
[340697375,1729691480164,-780.02,0.00051543,120]
[340697376,1729691480175,-500.0,0.00051543,120]
[340697377,1729691480185,-500.0,0.00051543,120]
[340697378,1729691480194,-500.0,0.00051543,120]
[340697379,1729691480204,-500.0,0.00051543,120]
[340697380,1729691480215,-500.0,0.00051543,120]
[340697381,1729691480223,-1426.92,0.00051543,120]
[340697382,1729691480233,-500.0,0.00051543,120]
[340697383,1729691480242,-625.59,0.00051543,120]
[340697384,1729691480251,-500.0,0.00051543,120]
[340697385,1729691480262,-500.0,0.00051543,120]
[340697386,1729691480272,-500.0,0.00051543,120]
[340697387,1729691480282,-331.3581772,0.00051543,120]
[340697388,1729691480291,-500.0,0.00051543,120]
[340697389,1729691480301,-500.0,0.00051543,120]
[340697390,1729691480310,-568.82806826,0.00051543,120]
[340697391,1729691480319,-388.8516522,0.00051543,120]
[340697392,1729691480329,-500.0,0.00051543,120]
[340697393,1729691480338,-319.57,0.00051543,120]
[340697394,1729691480348,-500.0,0.00051543,120]
[340697395,1729691480358,-500.0,0.00051543,120]
[340697396,1729691480539,-662.16,0.00051543,120]
[340697397,1729691480556,-518.51,0.00051543,120]
[340697398,1729691480565,-500.0,0.00051543,120]
[340697399,1729691480574,-500.0,0.00051543,120]
[340697400,1729691480584,-500.0,0.00051543,120]
[340697401,1729691480593,-500.0,0.00051543,120]
[340697402,1729691480603,-500.0,0.00051543,120]
[340697403,1729691480613,-559.51855718,0.00051543,120]
[340697404,1729691480623,-1251.52,0.00051543,120]
[340697405,1729691480633,-500.0,0.00051543,120]
[340697406,1729691480643,-500.0,0.00051543,120]
[340697407,1729691480653,-625.62322134,0.00051543,120]
[340697408,1729691480663,-1448.29,0.00051543,120]
[340697409,1729691480674,-500.0,0.00051543,120]
[340697410,1729691480684,-526.42330258,0.00051543,120]
[340697411,1729691480695,-531.48,0.00051543,120]
[340697412,1729691480705,-500.0,0.00051543,120]
[340697413,1729691480714,-512.18,0.00051543,120]
[340697414,1729691480724,-3362.71,0.00051543,120]
[340697415,1729691480733,-500.0,0.00051543,120]
[340697416,1729691480743,-730.54,0.00051543,120]
[340697417,1729691480752,-500.0,0.00051543,120]
[340697418,1729691480762,-500.0,0.00051543,120]
[340697419,1729691480771,-500.0,0.00051543,120]
[340697420,1729691480781,-500.0,0.00051543,120]
[340697421,1729691480790,-500.0,0.00051543,120]
[340697422,1729691480800,-500.0,0.00051543,120]
[340697423,1729691480811,-831.29,0.00051543,120]
[340697424,1729691480820,-500.0,0.00051543,120]
[340697425,1729691480830,-500.0,0.00051543,120]
[340697426,1729691480839,-591.17,0.00051543,120]
[340697427,1729691480849,-500.0,0.00051543,120]
[340697428,1729691480858,-500.0,0.00051543,120]
[340697429,1729691480868,-500.0,0.00051543,120]
[340697430,1729691480877,-500.0,0.00051543,120]
[340697431,1729691480887,-500.0,0.00051543,120]
[340697432,1729691480897,-500.0,0.00051543,120]
[340697433,1729691480906,-558.36,0.00051543,120]
[340697434,1729691480916,-972.62,0.00051543,120]
[340697435,1729691480925,-500.0,0.00051543,120]
[340697436,1729691480934,-522.81037185,0.00051543,120]
[340697437,1729691480944,-4500.25,0.00051543,120]
[340697438,1729691480953,-872.5,0.00051543,120]
[340697439,1729691480963,-1016.47,0.00051543,120]
[340697440,1729691480972,-500.0,0.00051543,120]
[340697441,1729691480981,-500.0,0.00051543,120]
[340697442,1729691480991,-2359.59,0.00051543,120]
[340697443,1729691481000,-500.0001909,0.00051543,120]
[340697444,1729691481010,-2640.22,0.00051543,120]
[340697445,1729691481019,-5436.64,0.00051543,120]
[340697446,1729691481028,-500.0,0.00051543,120]
[340697447,1729691481037,-2910.4,0.00051543,120]
[340697448,1729691481046,-2127.62,0.00051543,120]
[340697449,1729691481056,-218.2325651,0.00051543,120]
[340697450,1729691481490,-281.7674349,0.00051543,120]
[340697451,1729691481500,-500.0,0.00051543,120]
[340697452,1729691481512,-3750.3,0.00051543,120]
[340697453,1729691481522,-883.93305779,0.00051543,120]
[340697454,1729691481533,-96.43694221,0.00051543,120]
[340697455,1729691481543,-165.30564779,0.00051543,120]
[340697456,1729691481554,-518.87435221,0.00051543,120]
[340697457,1729691481564,-500.0,0.00051543,120]
[340697458,1729691481574,-500.0,0.00051543,120]
[340697459,1729691481584,-1581.21,0.00051543,120]
[340697460,1729691481596,-222.96564779,0.00051543,120]
[340697461,1729691482025,-500.0,0.00049798,120]
[340697462,1729691482035,-138.72103182,0.00049899,120]
[340697463,1729691483325,-300.0,0.00049889,10]
[340697464,1729691483336,-162.46,0.00049889,10]
[340697465,1729691483347,-104.76567297,0.00049899,120]
[340697466,1729691483430,-110.9962546,0.00049899,120]
[340697467,1729691483439,-613.74162866,0.000499,10]
[340697468,1729691483448,-500.0,0.00050072,120]
[340697469,1729691483458,-303.34264401,0.00050072,2]
[340697470,1729691502923,5638.45,0.00045,120]
[340697471,1729691548177,165.13,0.00015342,2]
[340697472,1729691703236,200.0,0.00023,2]
[340697473,1729691732524,-329.46,0.00047022,2]
[340697474,1729691755686,-1201.9913,0.00048249,7]
[340697475,1729691755710,-1013.86,0.000488,111]
[340697476,1729691755736,-250.0,0.00048983,120]
[340697477,1729691821133,250.0,0.00048848,120]
[340697478,1729691841087,6954.6887,0.00048862,2]
[340697479,1729691946104,10000.0,0.00048,60]
[340697481,1729692069998,156.37,0.00015342,2]
[340697482,1729692198965,325.16,0.00046719,2]
[340697483,1729692342128,-1170.90982519,0.00048,60]
[340697484,1729692356126,-412.79532306,0.00048,60]
[340697485,1729692404281,906.0,0.000395,2]
[340697486,1729692404953,860.0,0.000395,2]
[340697490,1729692632115,-439.35,0.000479,2]
[340697491,1729692632126,-464.12448188,0.000479,2]
[340697492,1729692632135,-218.38141382,0.00047937,2]
[340697493,1729692632145,-1900.07410429,0.00048,60]
[340697494,1729692632156,-372.83074746,0.00048,60]
[340697495,1729692632165,-194.14199954,0.00048037,14]
[340697496,1729692632176,-1305.85800046,0.00048037,14]
[340697497,1729692632185,-150.0,0.00048043,7]
[340697498,1729692632194,-423.99428504,0.00048293,2]
[340697499,1729692632205,-608.2894598,0.00048293,2]
[340697500,1729692632214,-800.0,0.00048293,2]
[340697501,1729692632223,-194.47968209,0.00048317,120]
[340697502,1729692632234,-3.14031791,0.00048317,120]
[340697503,1729692632244,-524.94913966,0.00048363,2]
[340697504,1729692632254,-708.14,0.00048363,2]
[340697505,1729692632270,-268.36086034,0.00048363,2]
[340697506,1729692632278,-807.59409156,0.00048452,2]
[340697507,1729692632299,-939.82724979,0.00048452,2]
[340697508,1729692632310,-614.96018,0.00048452,2]
[340697509,1729692632321,-677.83,0.00048452,2]
[340697510,1729692632337,-1123.64847865,0.00048452,2]
[340697511,1729692632346,-218.38141381,0.00048589,2]
[340697512,1729692632356,-250.0,0.00048634,120]
[340697513,1729692632366,-2751.0,0.00048639,120]
[340697514,1729692632378,-507.181,0.00048671,2]
[340697515,1729692632387,-3359.0,0.00048671,2]
[340697516,1729692632397,-250.0,0.00048689,120]
[340697517,1729692632406,-200.0,0.00048792,2]
[340697518,1729692632415,-500.0,0.0004886,5]
[340697519,1729692632424,-500.0,0.00048868,5]
[340697520,1729692632435,-500.0,0.00048877,5]
[340697521,1729692632444,-150.93,0.0004895,120]
[340697522,1729692632454,-325.16,0.00048983,2]
[340697523,1729692632463,-1180.79141024,0.00049154,14]
[340697524,1729692632474,-1500.0,0.00049214,14]
[340697525,1729692632483,-150.0,0.00049359,7]
[340697526,1729692632493,-150.0,0.00049362,7]
[340697527,1729692632502,-150.0,0.00049362,4]
[340697528,1729692632514,-150.0,0.00049376,7]
[340697529,1729692632523,-150.0,0.00049449,7]
[340697530,1729692632533,-3435.19518443,0.0004948,120]
[340697531,1729692632542,-319.20858976,0.00049492,14]
[340697532,1729692632551,-1500.0,0.00049517,14]
[340697533,1729692632560,-5727.6311,0.00049582,2]
[340697534,1729692632569,-4463.2927,0.00049589,2]
[340697535,1729692632579,-862.5138,0.00049589,2]
[340697536,1729692632588,-1281.4011,0.00049589,2]
[340697537,1729692632603,-207.80496321,0.00049687,28]
[340697538,1729692632612,-2500.0,0.00049687,2]
[340697539,1729692632622,-1495.328,0.00049688,87]
[340697540,1729692632631,-1000.0,0.00049688,2]
[340697541,1729692632641,-66636.90677512,0.00049689,2]
[340697542,1729692632653,-18080.63554323,0.00049689,2]
[340697543,1729692632664,-1963.48095136,0.00049689,2]
[340697554,1729692638189,-385.38,0.00049679,10]
[340697555,1729692638199,-1443.72528431,0.00049689,2]
[340697556,1729692638290,-1073.24,0.00049689,2]
[340697557,1729692638301,-1013.3,0.00049689,2]
[340697558,1729692638543,-1291.62766811,0.00049689,2]
[340697580,1729692640157,-1721.5850652,0.00049689,2]
[340697581,1729692640182,-857.08998882,0.00049689,2]
[340697582,1729692640286,-1807.54153593,0.00049689,2]
[340697596,1729692643623,-421.401,0.00049689,2]
[340697608,1729692643765,-27275.82238792,0.00049689,2]
[340697610,1729692643778,-500.0,0.00049689,2]
[340697612,1729692643788,-1000.0,0.00049689,2]
[340697614,1729692643798,-570.28902616,0.00049689,21]
[340697616,1729692643807,-558.27865208,0.00049689,2]
[340697618,1729692643817,-215.73203111,0.00049698,28]
[340697620,1729692643828,-150.0,0.0004976,7]
[340697622,1729692643838,-162.06224898,0.00049773,10]
[340697624,1729692643847,-451.21982598,0.00049773,10]
[340697626,1729692643857,-12946.1197443,0.00049778,10]
[340697627,1729692643867,-4315.3732481,0.00049779,10]
[340697628,1729692643877,-500.0,0.00049786,120]
[340697629,1729692643886,-518.97,0.00049786,120]
[340697630,1729692643896,-500.0,0.00049786,2]
[340697631,1729692643906,-500.0,0.00049786,120]
[340697632,1729692643915,-500.0,0.00049786,120]
[340697633,1729692643925,-500.0,0.00049786,120]
[340697634,1729692643934,-517.83,0.00049786,120]
[340697635,1729692643945,-76905.88903808,0.00049787,10]
[340697641,1729692646395,-321.15,0.00049777,10]
[340697642,1729692646405,-1816.75186013,0.00049787,10]
[340697643,1729692646416,-3879.0318473,0.00049787,10]
[340697644,1729692646439,-665.7,0.00049787,10]
[340697645,1729692646450,-3655.3828011,0.00049787,10]
[340697646,1729692725920,292.64,0.00046875,2]
[340697647,1729692762596,-1432.01,0.00048797,120]
[340697648,1729692762622,-150.0,0.0004896,7]
[340697649,1729692780420,250.0,0.00048799,120]
[340697650,1729692884546,579.42,0.00048,120]
[340697651,1729693103489,360.0,0.00048756,2]
[340697652,1729693128345,7228.57,0.000458,120]
[340697653,1729693128370,10000.0,0.000458,120]
[340697654,1729693128394,5903.62531855,0.000458,120]
[340697655,1729693360527,278.0,0.00046756,2]
[340697656,1729693373318,157.69,0.00015342,2]
[340697659,1729693552508,3660.68468145,0.0002495,2]
[340697660,1729693552532,10000.0,0.0002495,2]
[340697661,1729693552556,38838.16773457,0.0002495,2]
[340697662,1729693630460,227584.78133496,0.0002498,2]
[340697665,1729693655285,327.40731498,0.00018,2]
[340697666,1729693681308,180587.75401967,0.00011,2]
[340697667,1729693718461,150.0,0.0004501,2]
[340697668,1729693722411,1039.21714736,0.00018,2]
[340697684,1729693832437,-979.42207152,0.0004037,4]
[340697685,1729693832453,-676.23,0.0004037,4]
[340697686,1729693832472,-360.89553506,0.0004037,4]
[340697699,1729693840311,-675.47702047,0.0004037,4]
[340697700,1729693840383,-1345.9919815,0.0004037,4]
[340697703,1729693844391,-677.87907903,0.0004037,4]
[340697704,1729693844564,-10170.07,0.0004037,4]
[340697711,1729693846295,-514.51508576,0.0004037,4]
[340697712,1729693846455,-33663.2,0.0004037,4]
[340697713,1729693846540,-1955.2387,0.0004037,4]
[340697716,1729693874842,1941.69291641,0.0004027,2]
[340697717,1729693956150,158.67,0.00015342,2]
[340697722,1729694095509,-332.08,0.00046165,2]
[340697723,1729694095535,-150.0,0.00046665,7]
[340697724,1729694099669,-150.0,0.00047498,7]
[340697725,1729694099694,-150.0,0.00047924,7]
[340697726,1729694099719,-150.0,0.00047954,7]
[340697727,1729694099743,-499.99,0.00047954,2]
[340697728,1729694099774,-150.0,0.00047995,7]
[340697729,1729694099798,-509.41652385,0.00048,7]
[340697730,1729694125583,1087.96,0.00048,120]
[340697731,1729694142102,1087.96,0.00048,120]
[340697732,1729694148006,1087.96,0.00048,120]
[340697733,1729694156657,1087.96,0.00048,120]
[340697734,1729694162456,4038.75347615,0.0004799,120]
[340697735,1729694227717,768.0,0.00040371,30]
[340697736,1729694275753,1087.96,0.00047,120]
[340697737,1729694369336,861.3,0.00047,120]
[340697738,1729694376220,861.3,0.00047,120]
[340697739,1729694381592,861.3,0.00047,120]
[340697740,1729694387796,861.3,0.00047,120]
[340697741,1729694392999,861.3,0.00047,120]
[340697742,1729694483805,315.47,0.00046077,2]
[340697743,1729694594462,165.13,0.00015342,2]
[340697744,1729694607619,500.0,0.00047,2]
[340697746,1729694705998,150.0,0.00034548,10]
[340697750,1729694980990,299.69,0.00045807,2]
[340697751,1729694986581,1925.17,0.00041,2]
[340697752,1729694986606,1986.70366692,0.00041,2]
[340697765,1729695031507,-13011.43568798,0.00040457,4]
[340697767,1729695031517,-400.53005261,0.00040457,2]
[340697769,1729695031526,-150.0,0.00046692,7]
[340697771,1729695031536,-150.0,0.00047296,7]
[340697773,1729695031546,-150.0,0.00047366,7]
[340697774,1729695031557,-150.0,0.00047578,7]
[340697775,1729695031566,-150.0,0.00047611,7]
[340697776,1729695031576,-1000.0,0.00047696,120]
[340697777,1729695031586,-23880.0,0.00047699,2]
[340697778,1729695031595,-250.0,0.00047714,120]
[340697779,1729695031605,-628.98,0.00047716,120]
[340697780,1729695031614,-250.0,0.0004772,120]
[340697781,1729695031623,-178.62,0.00047732,120]
[340697782,1729695031633,-2520.92,0.00047759,2]
[340697783,1729695031643,-150.0,0.00047891,7]
[340697784,1729695031652,-150.0,0.00047897,7]
[340697785,1729695031662,-150.93,0.00047943,120]
[340697786,1729695031672,-250.0,0.00047987,120]
[340697787,1729695031682,-222.83757934,0.0004799,120]
[340697788,1729695031691,-2023.4,0.00048,120]
[340697789,1729695031701,-522.79243652,0.00048004,8]
[340697790,1729695031710,-200.0,0.00048038,2]
[340697791,1729695031720,-210.05,0.00048043,120]
[340697792,1729695031730,-1000.0,0.00048049,2]
[340697793,1729695031740,-150.0,0.00048051,7]
[340697794,1729695031750,-178.52,0.00048052,120]
[340697795,1729695031760,-151.81,0.00048054,2]
[340697796,1729695031769,-150.0,0.00048069,7]
[340697797,1729695031781,-299.69,0.00048071,2]
[340697798,1729695031790,-150.0,0.00048101,7]
[340697799,1729695031800,-1196.262,0.00048116,82]
[340697800,1729695031809,-150.0,0.00048119,7]
[340697801,1729695031819,-150.0,0.00048226,7]
[340697802,1729695031829,-150.0,0.00048237,7]
[340697803,1729695031839,-150.0,0.0004825,7]
[340697804,1729695031848,-676.93,0.00048353,2]
[340697805,1729695031859,-150.0,0.00048362,7]
[340697806,1729695031868,-150.0,0.00048364,7]
[340697807,1729695031878,-150.0,0.00048394,7]
[340697808,1729695031888,-150.0,0.00048516,7]
[340697809,1729695031899,-150.0,0.00048575,7]
[340697810,1729695031908,-150.0,0.00048622,7]
[340697811,1729695031918,-150.0,0.00048627,7]
[340697812,1729695031928,-150.0,0.00048631,7]
[340697813,1729695031937,-150.0,0.00048646,7]
[340697814,1729695031946,-150.0,0.0004869,7]
[340697815,1729695031955,-150.0,0.00048734,7]
[340697816,1729695031964,-150.0,0.00048761,7]
[340697817,1729695031973,-150.0,0.00048774,7]
[340697818,1729695031983,-150.0,0.00048799,7]
[340697819,1729695031992,-6042.8,0.0004883,120]
[340697820,1729695032002,-150.0,0.00048889,7]
[340697821,1729695032012,-150.0,0.00048911,7]
[340697822,1729695032022,-150.0,0.00048914,7]
[340697823,1729695032033,-150.0,0.0004894,7]
[340697824,1729695032043,-150.0,0.00048955,7]
[340697825,1729695032055,-150.0,0.00048958,7]
[340697826,1729695032064,-150.0,0.00048987,7]
[340697827,1729695032074,-2422.77487311,0.0004899,120]
[340697828,1729695032084,-4000.0,0.00049,120]
[340697829,1729695032093,-4251.85589105,0.00049,120]
[340697830,1729695032102,-4000.0,0.00049,120]
[340697831,1729695032112,-4000.0,0.00049,120]
[340697832,1729695032122,-4000.0,0.00049,120]
[340697833,1729695032132,-4000.0,0.00049,120]
[340697834,1729695032141,-4251.85589105,0.00049,120]
[340697835,1729695032152,-4000.0,0.00049,120]
[340697836,1729695032161,-4000.0,0.00049,120]
[340697837,1729695032172,-4000.0,0.00049,120]
[340697838,1729695032181,-150.0,0.00049038,7]
[340697839,1729695032191,-152.93,0.00049041,30]
[340697840,1729695032200,-150.0,0.00049051,7]
[340697841,1729695032210,-150.0,0.00049064,7]
[340697842,1729695032219,-185.85,0.00049078,10]
[340697843,1729695032229,-150.0,0.00049085,7]
[340697844,1729695032238,-2500.0,0.00049088,9]
[340697845,1729695032247,-150.0,0.0004909,7]
[340697846,1729695032257,-150.0,0.00049101,7]
[340697847,1729695032266,-267.62,0.000492,10]
[340697848,1729695032275,-1027.1,0.0004921,120]
[340697849,1729695032285,-223.02,0.00049247,10]
[340697850,1729695032294,-150.0,0.00049257,7]
[340697851,1729695032305,-500.0,0.00049271,5]
[340697852,1729695032315,-500.0,0.0004928,5]
[340697853,1729695032326,-1122.807,0.00049286,2]
[340697854,1729695032336,-812.0,0.00049286,2]
[340697855,1729695032346,-816.841,0.00049286,2]
[340697856,1729695032356,-809.0,0.00049286,2]
[340697857,1729695032366,-4202.251,0.00049286,2]
[340697858,1729695032376,-150.0,0.00049286,2]
[340697859,1729695032386,-170.124,0.00049286,2]
[340697860,1729695032395,-248.7,0.00049286,2]
[340697861,1729695032405,-500.0,0.00049289,5]
[340697862,1729695032414,-150.0,0.00049295,7]
[340697863,1729695032424,-500.0,0.00049297,5]
[340697864,1729695032433,-3000.0,0.000493,2]
[340697865,1729695032443,-606.79,0.00049303,120]
[340697866,1729695032453,-500.0,0.00049306,5]
[340697867,1729695032462,-150.0,0.00049309,7]
[340697868,1729695032471,-606.79,0.0004931,120]
[340697869,1729695032480,-500.0,0.00049315,5]
[340697870,1729695032490,-150.0,0.00049329,7]
[340697871,1729695032500,-151.38,0.00049329,120]
[340697872,1729695032509,-859.88,0.0004933,120]
[340697873,1729695032518,-150.0,0.00049372,7]
[340697874,1729695032529,-15812.9302842,0.00049396,15]
[340697875,1729695032539,-558.8262,0.00049397,2]
[340697876,1729695032549,-167.0,0.00049484,2]
[340697877,1729695032563,-2500.0,0.00049485,2]
[340697878,1729695032572,-3995.24075999,0.0004949,120]
[340697879,1729695032582,-4000.0,0.00049495,120]
[340697880,1729695032592,-500.0,0.00049495,2]
[340697881,1729695032602,-119.92534414,0.00049495,120]
[340697884,1729695037545,-154.88,0.00049078,10]
[340697886,1729695037558,-380.07465586,0.00049495,120]
[340697887,1729695037567,-500.0,0.00049495,120]
[340697888,1729695037576,-159.8569,0.00049496,2]
[340697889,1729695037585,-18284.49323253,0.00049496,2]
[340697890,1729695037596,-839.61402271,0.00049496,2]
[340697891,1729695037863,-80875.89274476,0.00049496,2]
[340697892,1729695037872,-575.81138496,0.00049496,21]
[340697893,1729695037882,-1083.39959556,0.00049497,28]
[340697894,1729695037891,-215.0,0.0004955,30]
[340697895,1729695037901,-2500.0,0.00049585,9]
[340697896,1729695037911,-24774.1916478,0.00049585,10]
[340697897,1729695037921,-108387.088459,0.00049586,10]
[340697898,1729695037930,-151.48,0.00049586,120]
[340697899,1729695037940,-151.48,0.00049586,120]
[340697900,1729695037950,-151.48,0.00049586,120]
[340697901,1729695037960,-151.48,0.00049586,120]
[340697902,1729695037969,-251.8611304,0.00049588,120]
[340697903,1729695037979,-500.0,0.00049593,120]
[340697904,1729695037989,-184.40755022,0.00049593,120]
[340697905,1729695037998,-1038.31,0.00049593,120]
[340697906,1729695038007,-500.0,0.00049593,120]
[340697907,1729695038017,-1396.2,0.00049593,120]
[340697908,1729695038027,-2499.88,0.00049593,120]
[340697909,1729695038038,-581.14,0.00049593,120]
[340697910,1729695038047,-500.0,0.00049593,120]
[340697911,1729695038058,-2403.29,0.00049593,120]
[340697912,1729695038068,-2393.31,0.00049593,120]
[340697913,1729695038077,-1078.45,0.00049593,120]
[340697914,1729695038087,-1462.44,0.00049593,120]
[340697915,1729695038096,-865.81,0.00049593,120]
[340697917,1729695038106,-596.71,0.00049593,120]
[340697919,1729695038115,-1434.43,0.00049593,120]
[340697920,1729695038125,-500.0,0.00049593,120]
[340697921,1729695038134,-500.0,0.00049593,120]
[340697922,1729695038143,-500.0,0.00049593,120]
[340697923,1729695038152,-539.87,0.00049593,120]
[340697924,1729695038162,-6123.06,0.00049593,120]
[340697925,1729695038171,-500.0,0.00049593,120]
[340697926,1729695038181,-500.0,0.00049593,120]
[340697927,1729695038190,-500.0,0.00049593,120]
[340697928,1729695038200,-500.0,0.00049593,120]
[340697929,1729695038209,-500.0,0.00049594,120]
[340697930,1729695038218,-551.7,0.00049594,120]
[340697931,1729695038229,-500.0,0.00049594,120]
[340697932,1729695038241,-500.0,0.00049594,120]
[340697933,1729695038249,-500.0,0.00049594,120]
[340697934,1729695038259,-574.46462021,0.00049594,120]
[340697935,1729695038268,-152.13215631,0.00049594,120]
[340697936,1729695038278,-1279.4,0.00049594,120]
[340697937,1729695038287,-541.69,0.00049594,120]
[340697938,1729695038296,-500.0,0.00049594,120]
[340697939,1729695038307,-500.0,0.00049594,120]
[340697940,1729695038316,-250.0,0.00049594,120]
[340697941,1729695038325,-500.0,0.00049594,120]
[340697942,1729695038334,-500.0,0.00049594,120]
[340697943,1729695038343,-500.0,0.00049594,120]
[340697944,1729695038353,-500.0,0.00049594,120]
[340697945,1729695038363,-500.0,0.00049594,120]
[340697946,1729695038372,-800.5,0.00049594,120]
[340697947,1729695038382,-829.74,0.00049594,120]
[340697948,1729695038391,-500.0,0.00049594,120]
[340697949,1729695038401,-500.0,0.00049594,120]
[340697950,1729695038410,-500.0,0.00049594,120]
[340697951,1729695038420,-500.0,0.00049594,120]
[340697952,1729695038429,-831.97,0.00049594,120]
[340697953,1729695038439,-500.0,0.00049594,120]
[340697954,1729695038449,-500.0,0.00049594,120]
[340697955,1729695038458,-3068.62,0.00049594,120]
[340697956,1729695038468,-500.0,0.00049594,120]
[340697957,1729695038478,-2062.02,0.00049594,120]
[340697958,1729695038487,-636.42,0.00049594,120]
[340697959,1729695038497,-500.0,0.00049594,120]
[340697960,1729695038507,-632.86,0.00049594,120]
[340697961,1729695038516,-500.0,0.00049594,120]
[340697962,1729695038525,-500.0,0.00049594,120]
[340697963,1729695038534,-521.15,0.00049594,120]
[340697964,1729695038544,-500.0,0.00049594,120]
[340697965,1729695038554,-500.0,0.00049594,120]
[340697966,1729695038563,-1010.38,0.00049594,120]
[340697967,1729695038573,-500.0,0.00049594,120]
[340697968,1729695038583,-500.0,0.00049594,120]
[340697969,1729695038593,-829.76,0.00049594,120]
[340697970,1729695038602,-710.82,0.00049594,120]
[340697971,1729695038612,-500.0,0.00049594,120]
[340697972,1729695038621,-500.0,0.00049594,120]
[340697973,1729695038631,-500.0,0.00049594,120]
[340697974,1729695038639,-500.0,0.00049594,120]
[340697975,1729695038649,-500.0,0.00049594,120]
[340697976,1729695038659,-500.0,0.00049594,120]
[340697977,1729695038668,-500.0,0.00049594,120]
[340697978,1729695038677,-500.0,0.00049594,120]
[340697979,1729695038687,-500.0,0.00049594,120]
[340697980,1729695038696,-500.0,0.00049594,120]
[340697981,1729695038706,-500.0,0.00049594,120]
[340697982,1729695038715,-500.0,0.00049594,120]
[340697983,1729695038724,-500.0,0.00049594,120]
[340697984,1729695038733,-2091.95,0.00049594,120]
[340697985,1729695038742,-153.042613,0.00049594,120]
[340697986,1729695038752,-500.0,0.00049594,120]
[340697987,1729695038761,-152.467185,0.00049594,120]
[340697988,1729695038771,-285.083403,0.00049594,120]
[340697989,1729695038784,-500.0,0.00049594,120]
[340697990,1729695038792,-500.0,0.00049594,120]
[340697991,1729695038801,-500.0,0.00049594,120]
[340697992,1729695038812,-405.89748,0.00049594,120]
[340697993,1729695038822,-500.0,0.00049594,120]
[340697994,1729695038831,-15318.09,0.00049594,120]
[340697995,1729695038841,-500.0,0.00049594,120]
[340697996,1729695038850,-500.0,0.00049594,120]
[340697997,1729695038860,-500.0,0.00049594,120]
[340697998,1729695038869,-500.0,0.00049594,120]
[340697999,1729695038879,-4000.0,0.00049594,120]
[340698000,1729695038889,-696.58,0.00049594,120]
[340698001,1729695038899,-500.0,0.00049594,120]
[340698002,1729695038908,-500.0,0.00049594,120]
[340698003,1729695038918,-500.0,0.00049594,120]